bitfinex-derivatives/quotes_SOLF0:USTF0_20250227
["timestamp","ask_amount","ask_price","bid_price","bid_amount"]
[1740672392693,12.14,139.39,139.25,4.036]
[1740672393093,7.1802,139.36,139.28,7.1836]
[1740672393295,12.14,139.39,139.25,4.036]
[1740672393491,1.31996428,139.38,139.25,4.036]
[1740672393692,7.1818,139.32,139.31,0.04558036]
[1740672394696,19.3218,139.32,139.31,8.036e-05]
[1740672395294,42.1823211,139.32,139.31,8.036e-05]
[1740672395490,51.4802211,139.32,139.31,8.036e-05]
[1740672397593,49.9177211,139.32,139.31,8.036e-05]
[1740672397790,20.6423211,139.32,139.31,8.036e-05]
[1740672398599,7.1818,139.32,139.31,8.036e-05]
[1740672399399,30.04207264,139.32,139.31,8.036e-05]
[1740672399801,8.50207264,139.32,139.31,8.036e-05]
[1740672401610,30.04207264,139.32,139.31,8.036e-05]
[1740672402999,30.04257714,139.32,139.31,8.036e-05]
[1740672403400,38.08107714,139.32,139.31,8.036e-05]
[1740672404606,36.7603,139.32,139.31,8.036e-05]
[1740672404806,38.08122944,139.32,139.31,8.036e-05]
[1740672407206,30.04272944,139.32,139.31,8.036e-05]
[1740672407604,20.64272944,139.32,139.31,8.036e-05]
[1740672408908,19.3218,139.32,139.31,8.036e-05]
[1740672409303,40.8618,139.32,139.31,8.036e-05]
[1740672409504,42.18262725,139.32,139.31,8.036e-05]
[1740672411211,63.69262725,139.32,139.31,8.036e-05]
[1740672411413,7.1886,139.21,139.19,8.0233]
[1740672411908,19.3276,139.23,139.19,8.0233]
[1740672412212,12.14,139.23,139.19,8.0233]
[1740672412512,0.05508688,139.22,139.2,0.0467048]
[1740672412711,12.14,139.28,139.2,0.0467048]
[1740672412911,12.14,139.31,139.19,8.0233]
[1740672413111,7.1849,139.28,139.22,7.1874]
[1740672413308,12.14,139.31,139.22,7.1874]
[1740672413514,1.32067093,139.3,139.22,7.1874]
[1740672413811,1.32067093,139.3,139.19,8.0233]
[1740672414011,0.04568492,139.27,139.25,0.04598667]
[1740672414213,7.23108492,139.27,139.25,0.04598667]
[1740672414513,0.04568492,139.27,139.25,0.04598667]
[1740672414911,7.1844,139.29,139.25,0.04598667]
[1740672415114,12.14,139.31,139.25,0.04598667]
[1740672415308,1.32068379,139.3,139.25,0.04598667]
[1740672416313,7.1852,139.27,139.25,0.04598667]
[1740672416515,0.05389257,139.29,139.25,0.04598667]
[1740672416722,7.1854,139.27,139.25,0.04598667]
[1740672418219,0.05389257,139.29,139.25,0.04598667]
[1740672418912,7.1847,139.28,139.25,0.04598667]
[1740672419518,0.05389257,139.29,139.25,0.04598667]
[1740672419519,7.1852,139.27,139.25,0.04598667]
[1740672419720,0.05389257,139.29,139.25,0.04598667]
[1740672420218,7.1856,139.26,139.25,0.04598667]
[1740672420615,7.1856,139.26,139.25,8.667e-05]
[1740672421015,8.50670986,139.26,139.25,8.667e-05]
[1740672421612,0.05389257,139.29,139.25,8.667e-05]
[1740672422613,7.1856,139.26,139.25,8.667e-05]
[1740672422818,20.64671539,139.26,139.25,8.667e-05]
[1740672423812,42.18671539,139.26,139.25,8.667e-05]
[1740672424316,40.8656,139.26,139.25,8.667e-05]
[1740672424923,42.1870001,139.26,139.25,8.667e-05]
[1740672426515,13.4614001,139.26,139.25,8.667e-05]
[1740672426716,1.3214001,139.26,139.25,8.667e-05]
[1740672426922,0.05389257,139.29,139.25,8.667e-05]
[1740672431918,19.3217,139.34,139.27,7.1849]
[1740672432124,19.3217,139.34,139.28,4.0125]
[1740672432125,12.14,139.34,139.28,4.0125]
[1740672432518,7.1841,139.29,139.28,4.0125]
[1740672432921,0.05379104,139.3,139.28,4.0125]
[1740672433122,7.1841,139.29,139.28,4.0125]
[1740672433530,0.05379104,139.3,139.28,4.0125]
[1740672433719,7.1841,139.29,139.28,4.0125]
[1740672434028,0.05379104,139.3,139.27,2.424e-05]
[1740672434216,7.1846,139.28,139.27,2.424e-05]
[1740672435423,0.05379104,139.3,139.27,2.424e-05]
[1740672435822,7.23759104,139.3,139.27,2.424e-05]
[1740672436827,198.45862307,139.45,139.27,2.424e-05]
[1740672437027,12.14,139.37,139.22,197.0008]
[1740672437228,12.14,139.37,139.22,4.0008]
[1740672438125,12.14,139.37,139.28,0.05396856]
[1740672438126,0.04796586,139.3,139.28,0.05396856]
[1740672438319,184.10602307,139.41,139.28,0.05396856]
[1740672438525,90.415268,139.42,139.28,0.05396856]
[1740672438721,12.14,139.38,139.28,0.05396856]
[1740672439627,0.05078728,139.33,139.28,0.05396856]
[1740672440135,7.1832,139.31,139.28,0.05396856]
[1740672440329,0.05078728,139.33,139.28,0.05396856]
[1740672440729,7.1837,139.3,139.28,0.05396856]
[1740672440931,0.05078728,139.33,139.28,0.05396856]
[1740672441328,7.1841,139.29,139.28,0.05396856]
[1740672441529,7.1841,139.29,139.28,6.856e-05]
[1740672442534,12.14,139.31,139.28,6.856e-05]
[1740672442738,0.05175207,139.3,139.28,3.99366856]
[1740672442934,12.14,139.31,139.28,3.99366856]
[1740672443134,12.14,139.35,139.29,4.0491]
[1740672444040,7.1826,139.32,139.31,0.05134839]
[1740672444538,0.04982732,139.33,139.31,0.05134839]
[1740672445130,7.23182732,139.33,139.31,0.05134839]
[1740672445443,0.04982732,139.33,139.31,0.05134839]
[1740672449041,7.1792,139.39,139.31,21.59134839]
[1740672449244,7.1792,139.39,139.3,3.9398]
[1740672449438,7.1795,139.38,139.33,7.1817]
[1740672449943,0.0545204,139.37,139.34,0.05196162]
[1740672450640,12.14,139.42,139.34,21.57196162]
[1740672450943,4.0563,139.47,139.34,0.05196162]
[1740672451150,7.1775,139.42,139.37,7.1799]
[1740672451337,16.1963,139.47,139.38,3.9561]
[1740672451741,0.05206169,139.44,139.41,0.0516892]
[1740672452247,7.1774,139.42,139.41,8.92e-05]
[1740672454944,7.177,139.43,139.41,8.92e-05]
[1740672456150,15.8115,139.5,139.41,8.92e-05]
[1740672456347,12.12,139.5,139.41,8.92e-05]
[1740672456547,12.12,139.5,139.39,7.8659]
[1740672457351,0.0456398,139.46,139.43,0.0454341]
[1740672457551,7.2214398,139.46,139.43,0.0454341]
[1740672457748,0.0456398,139.46,139.43,0.0454341]
[1740672459155,7.1759,139.45,139.43,0.0454341]
[1740672459353,0.0456398,139.46,139.43,0.0454341]
[1740672459548,7.1764,139.44,139.43,0.0454341]
[1740672459744,0.0456398,139.46,139.33,7.6988]
[1740672459951,7.6687,139.47,139.33,7.6988]
[1740672460254,1.31934296,139.46,139.33,14.8805]
[1740672460459,1.31934296,139.46,139.33,7.6988]
[1740672460656,7.1801,139.37,139.33,7.6988]
[1740672460848,12.12,139.4,139.33,7.6988]
[1740672461156,12.12,139.4,139.34,0.05256491]
[1740672461359,7.23420991,139.38,139.34,0.05256491]
[1740672461654,0.05440991,139.38,139.34,0.05256491]
[1740672463258,7.1801,139.37,139.34,0.05256491]
[1740672463455,0.05440991,139.38,139.34,0.05256491]
[1740672463652,7.181,139.35,139.34,0.05256491]
[1740672464555,7.1801,139.37,139.34,0.05256491]
[1740672464756,0.05440991,139.38,139.34,0.05256491]
[1740672465658,7.23400991,139.38,139.34,0.05256491]
[1740672466258,0.05440991,139.38,139.34,0.05256491]
[1740672467360,7.1809,139.36,139.34,0.05256491]
[1740672467560,0.05440991,139.38,139.26,4.0735]
[1740672467759,1.32007431,139.39,139.26,4.0735]
[1740672468156,1.3201545,139.38,139.26,4.0735]
[1740672468357,12.12,139.4,139.26,4.0735]
[1740672468557,3.7772,139.37,139.26,4.0735]
[1740672468762,0.05009366,139.34,139.32,0.05285591]
[1740672469061,7.182,139.33,139.32,0.05285591]
[1740672469264,0.05009366,139.34,139.32,0.05285591]
[1740672469561,7.23189366,139.34,139.32,0.05285591]
[1740672470059,7.182,139.33,139.32,0.05285591]
[1740672470260,0.05009366,139.34,139.32,0.05285591]
[1740672471255,7.23179366,139.34,139.32,0.05285591]
[1740672471464,0.05009366,139.34,139.32,0.05285591]
[1740672471659,7.23189366,139.34,139.32,0.05285591]
[1740672471957,0.05009366,139.34,139.32,0.05285591]
[1740672472361,7.182,139.33,139.32,0.05285591]
[1740672472861,0.05009366,139.34,139.32,0.05285591]
[1740672473963,7.182,139.33,139.32,0.05285591]
[1740672474661,7.23179366,139.34,139.32,0.05285591]
[1740672474858,0.05009366,139.34,139.32,0.05285591]
[1740672475060,19.7712,139.41,139.33,7.182]
[1740672475363,19.7712,139.41,139.26,197.0735]
[1740672475560,19.7712,139.41,139.26,4.0735]
[1740672475755,7.1808,139.36,139.32,7.1823]
[1740672475961,198.45452307,139.49,139.27,14.3701]
[1740672476161,0.05071999,139.35,139.33,0.05255917]
[1740672476361,7.1781,139.41,139.33,21.54]
[1740672476561,12.12,139.44,139.34,7.9247]
[1740672476958,4.0414,139.47,139.34,7.9247]
[1740672477164,16.1614,139.47,139.34,7.9247]
[1740672477364,7.1769,139.43,139.34,7.9247]
[1740672477565,0.04755074,139.42,139.39,0.04674879]
[1740672477954,0.04755074,139.42,139.39,21.56674879]
[1740672478160,12.12,139.51,139.39,21.56674879]
[1740672478357,23.8948,139.52,139.34,200.9247]
[1740672478556,7.1752,139.47,139.34,7.9247]
[1740672479359,0.0479521,139.42,139.39,0.05307983]
[1740672479665,7.1751,139.47,139.43,7.1764]
[1740672479861,12.12,139.51,139.34,200.9247]
[1740672480061,12.12,139.51,139.34,7.9247]
[1740672480258,1.31899448,139.5,139.34,7.9247]
[1740672480465,12.12,139.51,139.34,7.9247]
[1740672480663,1.3190923,139.5,139.41,0.05369188]
[1740672480857,0.04585941,139.43,139.41,0.05369188]
[1740672481062,12.12,139.51,139.44,0.04539409]
[1740672481365,0.04585941,139.4,139.37,39.50077578]
[1740672481559,12.12,139.51,139.37,39.50077578]
[1740672481761,1.31900357,139.5,139.37,39.50077578]
[1740672481960,12.12,139.51,139.37,39.50077578]
[1740672482166,12.12,139.51,139.38,7.179]
[1740672482362,14.3468,139.5,139.37,39.50077578]
[1740672482662,1.31897037,139.49,139.37,39.50077578]
[1740672482968,0.04592047,139.45,139.42,0.05010646]
[1740672483161,12.12,139.44,139.37,39.50077578]
[1740672483363,27.1312,139.44,139.37,39.50077578]
[1740672483666,19.9545,139.44,139.37,39.50077578]
[1740672484366,0.04809016,139.42,139.39,0.04673246]
[1740672485363,0.04809016,139.42,139.39,7.22513246]
[1740672486170,0.04809016,139.42,139.39,0.04673246]
[1740672486669,0.04809016,139.42,139.39,7.22533246]
[1740672486866,0.04809016,139.42,139.39,0.04673246]
[1740672487470,12.12,139.47,139.39,0.04673246]
[1740672487771,12.12,139.47,139.43,7.1765]
[1740672488167,12.12,139.47,139.34,213.0447]
[1740672488568,3.9384,139.52,139.35,1.25172998]
[1740672488771,8.172e-05,139.42,139.39,0.04612391]
[1740672489066,3.9384,139.52,139.39,193.0]
[1740672489267,7.1724,139.52,139.39,193.0]
[1740672489572,7.6304,139.55,139.39,193.0]
[1740672489970,7.1728,139.51,139.47,7.1745]
[1740672490367,7.6304,139.55,139.48,0.05269239]
[1740672490666,7.6304,139.55,139.39,193.0]
[1740672490872,7.6304,139.55,139.5,9.596e-05]
[1740672491068,7.6304,139.55,139.39,193.0]
[1740672491968,0.05007908,139.48,139.46,0.05460357]
[1740672492171,0.05007908,139.48,139.42,7.1774]
[1740672492474,0.04756347,139.48,139.46,0.05410506]
[1740672492675,7.6304,139.55,139.4,3.9879]
[1740672492969,0.05367106,139.48,139.46,0.04968145]
[1740672493175,7.1743,139.48,139.42,7.1772]
[1740672493369,0.04990693,139.48,139.46,0.047215]
[1740672493571,0.04990693,139.48,139.41,7.6384]
[1740672493771,0.04990693,139.48,139.46,0.05042023]
[1740672493974,0.04990693,139.48,139.41,7.6384]
[1740672494173,0.04990693,139.48,139.46,0.05135106]
[1740672494374,7.172,139.53,139.48,7.174]
[1740672494572,3.7325,139.55,139.46,0.05159915]
[1740672494767,3.7325,139.55,139.41,7.6384]
[1740672494965,4.0792,139.57,139.41,200.6384]
[1740672495671,4.0792,139.57,139.5,7.1733]
[1740672495672,7.1706,139.56,139.5,7.1733]
[1740672495875,4.0792,139.57,139.43,195.12]
[1740672496074,7.1717,139.53,139.52,0.04720894]
[1740672496270,7.1717,139.53,139.43,195.12]
[1740672496474,4.0792,139.57,139.43,195.12]
[1740672496475,4.0792,139.57,139.51,0.0468506]
[1740672496668,7.171,139.55,139.48,7.1739]
[1740672496873,4.0792,139.57,139.53,0.04799481]
[1740672497176,7.1711,139.55,139.54,0.05338231]
[1740672497477,7.1711,139.55,139.43,195.12]
[1740672497770,7.1705,139.56,139.53,0.04884377]
[1740672497964,7.1705,139.56,139.49,7.1735]
[1740672498169,4.0792,139.57,139.49,7.1735]
[1740672498367,7.1708,139.55,139.51,0.05125571]
[1740672498771,4.0792,139.57,139.51,0.05125571]
[1740672498979,11.2493,139.57,139.51,0.05125571]
[1740672499675,4.0792,139.57,139.51,7.22365571]
[1740672499877,7.1703,139.56,139.51,0.05125571]
[1740672500176,4.0792,139.57,139.51,0.05125571]
[1740672500778,4.0792,139.57,139.51,7.22395571]
[1740672500977,11.2492,139.57,139.51,7.22395571]
[1740672501275,4.0792,139.57,139.51,7.22395571]
[1740672501579,11.2491,139.57,139.52,7.1719]
[1740672502171,4.0792,139.57,139.51,0.05125571]
[1740672502881,4.0792,139.57,139.51,7.22375571]
[1740672502882,7.1705,139.56,139.51,7.22375571]
[1740672503979,4.0792,139.57,139.51,0.05125571]
[1740672505378,1.31852203,139.56,139.41,17.4640954]
[1740672505578,205.61602307,139.55,139.41,9.8256954]
[1740672505782,1.31852203,139.54,139.41,9.8256954]
[1740672505979,7.1757,139.46,139.41,9.8256954]
[1740672506178,12.1,139.48,139.41,9.8256954]
[1740672506378,15.7889,139.47,139.41,9.8256954]
[1740672506579,3.83845534,139.46,139.43,0.05103144]
[1740672506778,0.05195534,139.46,139.43,0.05103144]
[1740672507282,7.22735534,139.46,139.43,0.05103144]
[1740672507676,0.05195534,139.46,139.43,0.05103144]
[1740672508381,3.7865,139.52,139.43,0.05103144]
[1740672508580,3.7865,139.52,139.38,7.6173]
[1740672508778,3.7865,139.52,139.48,7.1742]
[1740672508977,12.1,139.53,139.38,7.6173]
[1740672509476,12.1,139.53,139.44,0.04659567]
[1740672509680,12.1,139.53,139.39,15.5313858]
[1740672509880,19.2721,139.53,139.47,0.0515675]
[1740672510280,12.1,139.53,139.47,0.0515675]
[1740672510474,7.1742,139.49,139.47,0.0515675]
[1740672511188,12.1,139.53,139.47,0.0515675]
[1740672511485,7.1743,139.48,139.47,0.0515675]
[1740672512691,12.1,139.53,139.47,0.0515675]
[1740672512883,1.31877627,139.52,139.47,0.0515675]
[1740672513083,12.1,139.53,139.47,0.0515675]
[1740672513384,7.1743,139.48,139.47,0.0515675]
[1740672513690,12.1,139.53,139.41,9.8256954]
[1740672513885,0.05489148,139.49,139.41,9.8256954]
[1740672514885,0.05489148,139.49,139.44,0.0482743]
[1740672516388,7.1759,139.45,139.44,0.0482743]
[1740672517082,7.1765,139.44,139.37,199.1258]
[1740672517285,12.1,139.46,139.37,199.1258]
[1740672518280,0.05353199,139.43,139.4,0.05294864]
[1740672520191,0.05353199,139.43,139.41,7.1776]
[1740672520391,0.05353199,139.43,139.4,0.05294864]
[1740672522094,0.05353199,139.43,139.41,7.1779]
[1740672522492,7.23073199,139.43,139.4,0.05294864]
[1740672522689,0.05353199,139.43,139.4,7.23084864]
[1740672522898,0.05353199,139.43,139.4,0.05294864]
[1740672523393,0.05353199,139.43,139.42,7.1774]
[1740672527197,3.8959,139.51,139.4,0.05294864]
[1740672527403,3.8959,139.51,139.45,7.1755]
[1740672528108,7.1741,139.49,139.38,53.85907578]
[1740672528403,0.04889481,139.45,139.42,0.05124027]
[1740672528803,7.1734,139.5,139.42,0.05124027]
[1740672529103,7.1734,139.5,139.38,39.50077578]
[1740672529301,7.173,139.51,139.38,39.50077578]
[1740672529706,7.173,139.51,139.4,14.3568]
[1740672530003,7.1725,139.52,139.49,7.1735]
[1740672530206,3.8669,139.55,139.44,7.6048]
[1740672530511,7.1728,139.51,139.49,0.05145561]
[1740672531005,7.1719,139.53,139.5,7.1733]
[1740672531203,3.794,139.57,139.49,0.05145561]
[1740672531599,3.794,139.57,139.5,7.173]
[1740672531807,3.794,139.57,139.49,0.05145561]
[1740672532107,7.1714,139.54,139.52,0.04979588]
[1740672532307,3.794,139.57,139.44,200.6048]
[1740672532496,3.794,139.57,139.52,0.04931963]
[1740672532697,3.794,139.57,139.5,7.173]
[1740672533005,3.794,139.57,139.53,0.04843462]
[1740672533204,7.172,139.53,139.44,200.6048]
[1740672533603,7.172,139.53,139.47,0.04683528]
[1740672534004,7.172,139.53,139.49,7.1735]
[1740672534206,3.794,139.57,139.47,0.04683528]
[1740672534408,3.794,139.57,139.45,3.8955]
[1740672534607,3.794,139.57,139.51,1.558e-05]
[1740672534804,1.31841171,139.56,139.51,1.558e-05]
[1740672535201,1.31861365,139.55,139.51,1.558e-05]
[1740672535406,7.1723,139.52,139.51,1.558e-05]
[1740672535603,19.2723,139.52,139.51,1.558e-05]
[1740672535909,40.7723,139.52,139.51,1.558e-05]
[1740672536309,48.5864,139.52,139.51,1.558e-05]
[1740672536609,49.90527759,139.52,139.51,1.558e-05]
[1740672541609,28.40527759,139.52,139.51,1.558e-05]
[1740672541907,27.0864,139.52,139.51,1.558e-05]
[1740672542709,48.5864,139.52,139.51,1.558e-05]
[1740672543110,49.90522108,139.52,139.51,1.558e-05]
[1740672543705,264.08884774,139.52,139.37,39.50077578]
[1740672543910,17.06086395,139.51,139.37,39.50077578]
[1740672544214,7.1795,139.38,139.37,39.50077578]
[1740672544406,7.1795,139.38,139.37,108.45437901]
[1740672544604,12.1,139.42,139.37,108.45437901]
[1740672545013,0.04831723,139.39,139.37,108.45437901]
[1740672545212,0.04831723,139.39,139.37,96.70467901]
[1740672545412,0.04831723,139.39,139.36,117.40195663]
[1740672546315,21.56831723,139.39,139.36,117.40195663]
[1740672546808,21.56831723,139.39,139.36,117.2988728]
[1740672547014,7.18,139.37,139.36,117.2988728]
[1740672547314,43.07831723,139.39,139.36,117.2988728]
[1740672547517,43.07831723,139.39,139.36,0.0530802]
[1740672547712,7.1795,139.38,139.36,0.0530802]
[1740672547918,21.56831723,139.39,139.36,0.0530802]
[1740672548613,1.32046263,139.38,139.36,0.0530802]
[1740672549018,21.52,139.38,139.36,0.0530802]
[1740672550214,1.32056095,139.37,139.36,0.0530802]
[1740672550414,21.52,139.38,139.36,0.0530802]
[1740672550612,8.50045335,139.37,139.36,0.0530802]
[1740672550817,1.32055335,139.37,139.36,0.0530802]
[1740672551018,22.84055335,139.37,139.36,0.0530802]
[1740672551422,30.33759116,139.37,139.36,0.0530802]
[1740672551620,220.30296088,139.37,139.36,0.0530802]
[1740672551821,221.62365616,139.37,139.36,0.0530802]
[1740672552325,214.44375616,139.37,139.22,7.6748]
[1740672552516,191.60306088,139.37,139.22,7.6748]
[1740672552820,1.32075809,139.36,139.22,7.6748]
[1740672553022,12.1,139.35,139.22,7.6748]
[1740672553415,0.04562328,139.3,139.27,0.04619574]
[1740672555125,0.04562328,139.3,139.29,7.1841]
[1740672555423,0.04562328,139.3,139.27,0.04619574]
[1740672556526,12.12,139.35,139.27,0.04619574]
[1740672556715,12.12,139.35,139.22,7.6748]
[1740672556919,12.12,139.4,139.22,7.6748]
[1740672557226,12.12,139.4,139.23,195.34]
[1740672557427,12.12,139.4,139.25,14.3721]
[1740672557728,0.05402328,139.33,139.3,0.05100915]
[1740672557928,12.12,139.4,139.25,14.3721]
[1740672558130,12.12,139.4,139.23,195.34]
[1740672558328,1.31995574,139.39,139.32,7.1821]
[1740672558530,1.31995574,139.39,139.23,195.34]
[1740672558731,12.12,139.4,139.24,14.3732]
[1740672559132,1.31998054,139.39,139.31,0.04971425]
[1740672559333,12.12,139.4,139.23,195.34]
[1740672559527,12.12,139.4,139.25,14.3722]
[1740672560027,12.12,139.4,139.31,7.23529996]
[1740672560231,12.12,139.4,139.23,195.34]
[1740672560232,12.12,139.4,139.32,3.765]
[1740672560432,12.12,139.4,139.34,0.0521592]
[1740672561034,184.10602307,139.47,139.37,7.1799]
[1740672561234,12.12,139.43,139.32,3.765]
[1740672561435,12.12,139.43,139.41,0.05486925]
[1740672561636,12.12,139.43,139.33,3.7826]
[1740672561843,12.12,139.43,139.41,0.053229]
[1740672562039,12.12,139.43,139.33,3.7826]
[1740672562439,1.31973231,139.42,139.37,0.04834026]
[1740672563439,12.12,139.43,139.37,0.04834026]
[1740672563642,1.31971363,139.42,139.37,0.04834026]
[1740672563841,12.12,139.43,139.37,0.04834026]
[1740672564042,1.31971581,139.42,139.37,0.04834026]
[1740672564338,12.12,139.43,139.37,0.04834026]
[1740672564743,1.31971363,139.42,139.37,0.04834026]
[1740672565440,12.12,139.43,139.37,0.04834026]
[1740672568247,19.2972,139.43,139.37,0.04834026]
[1740672568844,1.31970672,139.42,139.37,0.04834026]
[1740672570240,12.12,139.43,139.37,0.04834026]
[1740672572347,39.58547294,139.53,139.37,0.04834026]
[1740672572549,13.4191798,139.52,139.33,4.0368]
[1740672572747,8.4921798,139.51,139.44,0.0538345]
[1740672572953,1.3191798,139.5,139.41,11.566]
[1740672573254,7.1734,139.5,139.46,0.05500155]
[1740672573951,7.1739,139.49,139.46,0.05500155]
[1740672574149,12.1,139.52,139.46,0.05500155]
[1740672574347,1.31897827,139.51,139.46,0.05500155]
[1740672576854,7.1741,139.49,139.46,0.05500155]
[1740672577649,7.1735,139.5,139.46,0.05500155]
[1740672577850,107.57270518,139.54,139.46,0.05500155]
[1740672578047,13.41889147,139.53,139.46,0.05500155]
[1740672578250,7.1737,139.5,139.46,0.05500155]
[1740672578661,107.57270518,139.54,139.46,0.05500155]
[1740672578855,119.67270518,139.54,139.46,0.05500155]
[1740672579655,7.172,139.53,139.46,0.05500155]
[1740672579853,12.1,139.54,139.46,0.05500155]
[1740672580452,0.46095298,139.58,139.46,0.05500155]
[1740672580453,12.1,139.56,139.46,0.05500155]
[1740672580857,7.172,139.53,139.46,7.1751]
[1740672581056,12.1,139.56,139.5,0.04654534]
[1740672581359,12.1,139.56,139.48,7.8583]
[1740672581555,1.31857221,139.55,139.52,0.05161116]
[1740672582560,7.1717,139.53,139.52,0.05161116]
[1740672584063,7.1717,139.53,139.52,1.116e-05]
[1740672590663,0.05021344,139.54,139.52,1.116e-05]
[1740672591359,7.1717,139.53,139.52,1.116e-05]
[1740672592869,0.05021344,139.54,139.52,1.116e-05]
[1740672593464,12.1,139.59,139.52,1.116e-05]
[1740672593662,12.1,139.59,139.48,7.8583]
[1740672593663,234.80547294,139.66,139.48,200.8583]
[1740672593865,13.39793734,139.65,139.48,200.8583]
[1740672594067,1.31793734,139.64,139.48,200.8583]
[1740672594364,1.31793734,139.64,139.51,7.1726]
[1740672594569,7.1696,139.58,139.55,0.04872862]
[1740672594770,12.08,139.65,139.48,200.8583]
[1740672594972,1.31786307,139.64,139.55,0.05506959]
[1740672595169,7.1699,139.57,139.48,200.8583]
[1740672595568,7.1699,139.57,139.51,0.04923762]
[1740672595769,7.1699,139.57,139.51,7.22193762]
[1740672596069,12.08,139.65,139.51,0.04923762]
[1740672596269,1.31795656,139.64,139.48,200.8583]
[1740672596471,1.31795656,139.64,139.57,0.05395527]
[1740672596969,12.08,139.65,139.57,0.05395527]
[1740672597171,1.31792544,139.64,139.57,0.05395527]
[1740672597970,7.1685,139.6,139.57,0.05395527]
[1740672598172,12.08,139.65,139.57,0.05395527]
[1740672598470,1.3179074,139.64,139.57,0.05395527]
[1740672600872,13.3979074,139.64,139.57,0.05395527]
[1740672601070,12.08,139.64,139.57,0.05395527]
[1740672601664,12.08,139.67,139.57,0.05395527]
[1740672601868,12.08,139.67,139.55,7.7111]
[1740672602172,7.1671,139.62,139.61,0.04801041]
[1740672602873,7.1671,139.62,139.61,1.041e-05]
[1740672603073,8.48487011,139.62,139.61,1.041e-05]
[1740672604672,29.96487011,139.62,139.61,1.041e-05]
[1740672604974,29.96530885,139.62,139.61,1.041e-05]
[1740672605471,37.44850928,139.62,139.61,1.041e-05]
[1740672605776,8.48530885,139.62,139.61,1.041e-05]
[1740672607672,7.1671,139.62,139.61,1.041e-05]
[1740672607871,8.48487566,139.62,139.61,1.041e-05]
[1740672608268,7.1671,139.62,139.61,1.041e-05]
[1740672609270,8.48485975,139.62,139.61,1.041e-05]
[1740672611671,8.48508711,139.62,139.61,1.041e-05]
[1740672612577,29.96508711,139.62,139.61,1.041e-05]
[1740672612774,8.48508711,139.62,139.61,1.041e-05]
[1740672613177,29.96508711,139.62,139.61,1.041e-05]
[1740672613370,8.48517814,139.62,139.61,1.041e-05]
[1740672614474,7.1671,139.62,139.61,1.041e-05]
[1740672616174,8.48499049,139.62,139.61,1.041e-05]
[1740672616568,7.1671,139.62,139.61,1.041e-05]
[1740672616769,8.48499449,139.62,139.61,1.041e-05]
[1740672618476,7.1671,139.62,139.61,1.041e-05]
[1740672619382,8.48497064,139.62,139.61,1.041e-05]
[1740672620081,8.48500321,139.62,139.61,1.041e-05]
[1740672621880,8.48510836,139.62,139.61,1.041e-05]
[1740672622680,29.96510836,139.62,139.61,1.041e-05]
[1740672623085,45.66482208,139.62,139.61,1.041e-05]
[1740672623489,80.16153976,139.62,139.61,1.041e-05]
[1740672623982,7.1738,139.49,139.48,39.61452654]
[1740672624385,12.08,139.52,139.48,39.61452654]
[1740672624585,7.1732,139.51,139.48,39.61452654]
[1740672624786,7.1732,139.51,139.47,86.19241327]
[1740672624787,12.08,139.52,139.47,7.5368]
[1740672625192,7.1733,139.5,139.48,0.05215225]
[1740672625885,7.1738,139.49,139.48,0.05215225]
[1740672630289,7.1738,139.49,139.48,5.225e-05]
[1740672632093,8.49294573,139.49,139.48,5.225e-05]
[1740672633197,7.1738,139.49,139.48,5.225e-05]
[1740672633401,8.49310163,139.49,139.48,5.225e-05]
[1740672634099,29.99310163,139.49,139.48,5.225e-05]
[1740672635501,15.98328153,139.49,139.48,5.225e-05]
[1740672636103,37.48328153,139.49,139.48,5.225e-05]
[1740672638199,28.6738,139.49,139.48,5.225e-05]
[1740672638400,29.99332708,139.49,139.48,5.225e-05]
[1740672638596,37.48350698,139.49,139.48,5.225e-05]
[1740672641204,29.99332708,139.49,139.48,5.225e-05]
[1740672641405,38.91810767,139.49,139.48,5.225e-05]
[1740672641596,38.91834909,139.49,139.48,5.225e-05]
[1740672642203,7.1795,139.38,139.37,5.225e-05]
[1740672642405,19.2595,139.38,139.37,5.225e-05]
[1740672642598,12.08,139.38,139.3,3.9576]
[1740672643104,1.32025008,139.37,139.3,3.9576]
[1740672643408,0.05194569,139.35,139.33,0.04956591]
[1740672643597,0.05194569,139.35,139.3,3.9576]
[1740672643802,1.32000149,139.4,139.3,25.4976]
[1740672644000,12.08,139.41,139.33,0.04577418]
[1740672644196,12.08,139.41,139.33,7.22747418]